bitfinex/quotes_BTCUSD_20250618
["timestamp","ask_amount","ask_price","bid_price","bid_amount"]
[1750249912955,0.21671504,104760.0,104750.0,0.53328575]
[1750249913163,0.23415543,104760.0,104750.0,0.53328575]
[1750249913379,0.01744039,104760.0,104750.0,0.53328575]
[1750249913590,0.20954335,104780.0,104770.0,0.21952737]
[1750249913798,0.25488861,104780.0,104770.0,0.42635154]
[1750249913998,0.23817357,104780.0,104770.0,0.42635154]
[1750249914197,0.2453449,104780.0,104770.0,0.42635154]
[1750249914410,0.23580146,104780.0,104770.0,0.42635154]
[1750249914614,0.25488861,104780.0,104770.0,0.42635154]
[1750249915225,0.25688861,104780.0,104770.0,0.42635154]
[1750249916060,0.30512147,104780.0,104770.0,0.42635154]
[1750249916319,0.3051222,104780.0,104770.0,0.41680747]
[1750249916545,0.3061222,104780.0,104770.0,0.41680747]
[1750249916994,0.3061222,104780.0,104770.0,0.42635154]
[1750249917210,0.2850387,104780.0,104770.0,0.42635154]
[1750249917424,0.2754949,104780.0,104770.0,0.42635154]
[1750249917640,0.2754949,104780.0,104770.0,0.44420515]
[1750249917641,0.25640757,104780.0,104770.0,0.44420515]
[1750249917852,0.26595119,104780.0,104770.0,0.44420515]
[1750249918305,0.26595119,104780.0,104770.0,0.44420819]
[1750249920173,0.26595119,104780.0,104770.0,0.42635154]
[1750249920619,0.23732069,104780.0,104770.0,0.5225933]
[1750249920857,0.02060565,104780.0,104770.0,0.58527262]
[1750249921074,0.23732069,104780.0,104770.0,0.58527262]
[1750249921745,0.23532069,104780.0,104770.0,0.5225933]
[1750249921952,0.23432069,104780.0,104770.0,0.5225933]
[1750249922813,0.23432069,104780.0,104770.0,0.5229533]
[1750249926896,0.01760565,104780.0,104770.0,0.5229533]
[1750249927105,0.23432069,104780.0,104770.0,0.5229533]
[1750249927363,0.2665991,104810.0,104800.0,0.2099232]
[1750249927364,0.25328582,104810.0,104800.0,0.2099232]
[1750249927571,0.25328582,104810.0,104800.0,0.20992329]
[1750249928011,0.25328582,104810.0,104800.0,0.21946509]
[1750249928227,0.07200409,104810.0,104800.0,0.23854804]
[1750249928432,0.057804,104810.0,104800.0,0.23854749]
[1750249928651,0.28051904,104810.0,104800.0,0.23854749]
[1750249928871,0.27097751,104810.0,104800.0,0.33478925]
[1750249929077,0.26143717,104810.0,104800.0,0.33478925]
[1750249929292,0.25589683,104810.0,104800.0,0.33478925]
[1750249929916,0.27131453,104810.0,104800.0,0.33478925]
[1750249930127,0.26731453,104810.0,104800.0,0.33478925]
[1750249930545,0.26231453,104810.0,104800.0,0.33478925]
[1750249932024,0.26131453,104810.0,104800.0,0.33478925]
[1750249934415,0.51619221,104810.0,104800.0,0.31570648]
[1750249934643,0.7070136,104810.0,104800.0,0.29662325]
[1750249934900,0.67839203,104810.0,104800.0,0.002]
[1750249935110,0.67839203,104810.0,104800.0,0.41004338]
[1750249935324,0.67839203,104810.0,104800.0,0.25292338]
[1750249935537,0.67839203,104810.0,104800.0,0.2624649]
[1750249935949,0.67839203,104810.0,104800.0,0.25292338]
[1750249936170,0.67839203,104810.0,104800.0,0.26246509]
[1750249936373,0.67839203,104810.0,104800.0,0.25492338]
[1750249936551,0.67839203,104810.0,104800.0,0.25292338]
[1750249936781,4.76535603,104810.0,104800.0,0.26046509]
[1750249936991,4.76535603,104810.0,104800.0,0.27954823]
[1750249937167,4.86250525,104810.0,104800.0,0.27954823]
[1750249937371,4.76635603,104810.0,104800.0,0.27954777]
[1750249937580,4.76635603,104810.0,104800.0,0.27000634]
[1750249937734,4.76835603,104810.0,104800.0,0.21946482]
[1750249937941,4.76835603,104810.0,104800.0,0.26046482]
[1750249938140,4.76835603,104810.0,104800.0,0.27000634]
[1750249939106,4.77789674,104810.0,104800.0,0.27000634]
[1750249939526,4.68322448,104810.0,104800.0,0.27954777]
[1750249940158,4.68322448,104810.0,104800.0,0.27000597]
[1750249940383,0.02862439,104800.0,104790.0,0.20992688]
[1750249940595,0.47159563,104800.0,104790.0,0.27001212]
[1750249940811,0.48113743,104800.0,104790.0,0.42697212]
[1750249941026,0.54362468,104800.0,104790.0,0.42697212]
[1750249941250,0.562708,104800.0,104790.0,0.42697212]
[1750249942771,0.562708,104800.0,104790.0,0.26046987]
[1750249942980,0.562708,104800.0,104790.0,0.27001221]
[1750249942981,0.55316684,104800.0,104790.0,0.27001221]
[1750249943207,0.56270873,104800.0,104790.0,0.23855446]
[1750249943424,0.56270873,104800.0,104790.0,0.43651446]
[1750249943835,0.56270873,104800.0,104790.0,0.41742987]
[1750249944044,0.56270873,104800.0,104790.0,0.42697221]
[1750249944262,0.55316684,104800.0,104790.0,0.41742987]
[1750249944475,0.55316757,104800.0,104790.0,0.41742987]
[1750249944891,0.54362559,104800.0,104790.0,0.41742987]
[1750249945119,0.45251303,104800.0,104790.0,0.42697212]
[1750249945329,0.46205474,104800.0,104790.0,0.42697212]
[1750249945548,0.47159663,104800.0,104790.0,0.42697212]
[1750249945754,0.65289489,104800.0,104790.0,0.40788743]
[1750249945961,0.74904411,104800.0,104790.0,0.40788761]
[1750249946170,0.74904411,104800.0,104790.0,0.42697267]
[1750249946419,0.01908515,104790.0,104780.0,0.42965974]
[1750249946646,0.0190866,104780.0,104770.0,0.12053438]
[1750249946874,4.82286653,104780.0,104770.0,0.0187]
[1750249947123,4.81332337,104780.0,104770.0,0.0187]
[1750249947336,4.81332337,104780.0,104770.0,0.02824471]
[1750249947551,4.81332337,104780.0,104770.0,0.22868366]
[1750249947552,0.42667849,104780.0,104770.0,0.22868366]
[1750249947776,0.65293688,104780.0,104770.0,0.22868366]
[1750249947991,0.24534508,104780.0,104770.0,0.24777208]
[1750249948200,0.46206012,104780.0,104770.0,0.23822801]
[1750249948420,0.46206012,104780.0,104770.0,0.24777227]
[1750249948626,0.48114763,104780.0,104770.0,0.24777236]
[1750249948836,0.48114763,104780.0,104770.0,0.24777245]
[1750249949044,0.47169484,104780.0,104770.0,0.2382281]
[1750249949253,0.47169484,104780.0,104770.0,0.22907245]
[1750249949460,0.46215104,104780.0,104770.0,0.22907236]
[1750249949663,0.46215104,104780.0,104770.0,0.23861653]
[1750249949875,0.46215104,104780.0,104770.0,0.22907236]
[1750249950294,0.47169484,104780.0,104770.0,0.2195281]
[1750249950499,0.47169484,104780.0,104770.0,0.22907245]
[1750249950707,0.46215104,104780.0,104770.0,0.23861671]
[1750249950940,0.23589174,104780.0,104770.0,0.30042854]
[1750249951139,0.23589164,104780.0,104770.0,0.30042854]
[1750249951346,0.21680532,104780.0,104770.0,0.30042854]
[1750249951550,0.22634848,104780.0,104770.0,0.30042854]
[1750249951767,9.028e-05,104780.0,104770.0,0.33485738]
[1750249951983,0.21680532,104780.0,104770.0,0.33485738]
[1750249953135,0.21671504,104790.0,104780.0,0.21950643]
[1750249953370,0.43343008,104790.0,104780.0,0.47290819]
[1750249953843,0.43343008,104790.0,104780.0,0.54139725]
[1750249954089,0.43343008,104790.0,104780.0,0.47290819]
[1750249954558,0.43343008,104790.0,104780.0,0.51394819]
[1750249955032,0.28037305,104800.0,104790.0,0.21948548]
[1750249955249,0.28991457,104800.0,104790.0,0.31572724]
[1750249955905,0.37299079,104800.0,104790.0,0.30618499]
[1750249956154,0.3729907,104800.0,104790.0,0.30618499]
[1750249956390,0.57028799,104800.0,104790.0,0.31572733]
[1750249956627,0.57328799,104800.0,104790.0,0.29664246]
[1750249956845,0.58282988,104800.0,104790.0,0.3157277]
[1750249957283,0.57328799,104800.0,104790.0,0.32527014]
[1750249957723,0.56374637,104800.0,104790.0,0.33481239]
[1750249958010,0.55420485,104800.0,104790.0,0.33481239]
[1750249958218,0.65963343,104800.0,104790.0,0.32527014]
[1750249958428,0.65963343,104800.0,104790.0,0.33481248]
[1750249958641,0.65963343,104800.0,104790.0,0.32526968]
[1750249958855,0.58282924,104800.0,104790.0,0.31572734]
[1750249959290,0.57328762,104800.0,104790.0,0.32526968]
[1750249959499,0.58282924,104800.0,104790.0,0.31572734]
[1750249959709,0.59237104,104800.0,104790.0,0.29664237]
[1750249959934,0.58282979,104800.0,104790.0,0.29664237]
[1750249960163,0.58282979,104800.0,104790.0,0.30618499]
[1750249960378,0.59237177,104800.0,104790.0,0.31572752]
[1750249960594,0.58283034,104800.0,104790.0,0.29664237]
[1750249960809,0.66703877,104800.0,104790.0,0.29664237]
[1750249961032,0.85787846,104800.0,104790.0,0.29464176]
[1750249961243,0.84833703,104800.0,104790.0,0.31372745]
[1750249961457,0.84833703,104800.0,104790.0,0.32327016]
[1750249961668,0.65749679,104800.0,104790.0,0.53321312]
[1750249962084,0.57328836,104800.0,104790.0,0.53321312]
[1750249962295,0.57328836,104800.0,104790.0,0.33481312]
[1750249962528,0.57328836,104800.0,104790.0,0.53317321]
[1750249962738,0.57328836,104800.0,104790.0,0.52363032]
[1750249962946,0.56374646,104800.0,104790.0,0.53317211]
[1750249963159,0.56374646,104800.0,104790.0,0.52362986]
[1750249963369,0.56374656,104800.0,104790.0,0.53317211]
[1750249963800,0.56374656,104800.0,104790.0,0.52362986]
[1750249964013,0.56374656,104800.0,104790.0,0.53317211]
[1750249964227,0.57328836,104800.0,104790.0,0.52362986]
[1750249964461,0.55420494,104800.0,104790.0,0.53317211]
[1750249964671,0.5446636,104800.0,104790.0,0.53317211]
[1750249965105,0.55420476,104800.0,104790.0,0.53317211]
[1750249965333,0.2738318,104800.0,104790.0,0.60557693]
[1750249966238,0.2728318,104800.0,104790.0,0.60557693]
[1750249966484,0.2708318,104800.0,104790.0,0.60557693]
[1750249966698,0.2708318,104800.0,104790.0,0.60957693]
[1750249966881,0.2708318,104800.0,104790.0,0.53717211]
[1750249967128,0.2708318,104800.0,104790.0,0.53517211]
[1750249968597,0.2708318,104800.0,104790.0,0.53817211]
[1750249968805,0.2708318,104800.0,104790.0,0.54217211]
[1750249969016,0.2708318,104800.0,104790.0,0.57227211]
[1750249970065,0.28037296,104800.0,104790.0,0.57227211]
[1750249970282,0.2708318,104800.0,104790.0,0.57227211]
[1750249970497,0.28037296,104800.0,104790.0,0.32472752]
[1750249970702,0.28037296,104800.0,104790.0,0.52320752]
[1750249970703,0.57028772,104800.0,104790.0,0.52320752]
[1750249970916,0.5607461,104800.0,104790.0,0.34381221]
[1750249971125,0.5607461,104800.0,104790.0,0.54229221]
[1750249971482,0.57028762,104800.0,104790.0,0.53929221]
[1750249971894,0.57028762,104800.0,104790.0,0.54129221]
[1750249972090,0.56074601,104800.0,104790.0,0.53529221]
[1750249972301,0.2708318,104800.0,104790.0,0.56729221]
[1750249972496,0.2708318,104800.0,104790.0,0.56929221]
[1750249973890,0.2708318,104800.0,104790.0,0.60249221]
[1750249976363,0.05423007,104810.0,104800.0,0.25066454]
[1750249976574,0.32506187,104810.0,104800.0,0.3792063]
[1750249976776,0.3346023,104810.0,104800.0,0.3792063]
[1750249977008,0.26127766,104810.0,104800.0,0.45836916]
[1750249977218,0.26127766,104810.0,104800.0,0.3792063]
[1750249977421,0.26127766,104810.0,104800.0,0.3782863]
[1750249978609,0.23209587,104810.0,104800.0,0.3782863]
[1750249979419,0.25117673,104810.0,104800.0,0.3479863]
[1750249979629,0.7006274,104810.0,104800.0,0.30634365]
[1750249979835,0.79677662,104810.0,104800.0,0.29880176]
[1750249980039,0.82551982,104810.0,104800.0,0.30834374]
[1750249980239,0.75013008,104810.0,104800.0,0.10024176]
[1750249980437,0.75013008,104810.0,104800.0,0.04512]
[1750249980787,0.3169544,104810.0,104800.0,0.20064]
[1750249980922,0.8586083,104810.0,104800.0,0.19864]
[1750249981700,0.84906759,104810.0,104800.0,0.19864]
[1750249981902,0.04014189,104800.0,104790.0,0.2415207]
[1750249982162,0.58179579,104800.0,104790.0,0.51440742]
[1750249982359,0.5913375,104800.0,104790.0,0.50486508]
[1750249982668,0.60087912,104800.0,104790.0,0.52394995]
[1750249982809,0.59133723,104800.0,104790.0,0.5334922]
[1750249983005,0.60087912,104800.0,104790.0,0.5334922]
[1750249983258,0.60087912,104800.0,104790.0,0.5668922]
[1750249983599,0.59133723,104800.0,104790.0,0.54780761]
[1750249983810,0.87239144,104800.0,104790.0,0.29700176]
[1750249984005,0.86284982,104800.0,104790.0,0.10778465]
[1750249984382,0.59183704,104800.0,104790.0,0.52603022]
[1750249984613,0.60137884,104800.0,104790.0,0.52603032]
[1750249984816,0.60137884,104800.0,104790.0,0.53557257]
[1750249985006,0.61092073,104800.0,104790.0,0.53557266]
[1750249985270,0.61092073,104800.0,104790.0,0.33881266]
[1750249985496,0.61092073,104800.0,104790.0,0.53757266]
[1750249985713,0.61092073,104800.0,104790.0,0.33881266]
[1750249985875,0.60137884,104800.0,104790.0,0.53757202]
[1750249986085,0.59183649,104800.0,104790.0,0.53757202]
[1750249986295,0.61092009,104800.0,104790.0,0.50894499]
[1750249986511,0.61092009,104800.0,104790.0,0.52806977]
[1750249986676,0.61092009,104800.0,104790.0,0.51852743]
[1750249986876,0.62046207,104800.0,104790.0,0.31972743]
[1750249987229,0.61092091,104800.0,104790.0,0.51848743]
[1750249987642,0.61092091,104800.0,104790.0,0.51848752]
[1750249988067,0.61092091,104800.0,104790.0,0.31972752]
[1750249988354,0.86076493,104800.0,104790.0,0.14136176]
[1750249988554,0.86076493,104800.0,104790.0,0.29896176]
[1750249988555,0.88452295,104800.0,104790.0,0.29896176]
[1750249988783,0.88452295,104800.0,104790.0,0.30850456]
[1750249989015,0.86076475,104800.0,104790.0,0.51848779]
[1750249989237,0.59183722,104800.0,104790.0,0.52803032]
[1750249989464,0.60137847,104800.0,104790.0,0.53769221]
[1750249989874,0.61092036,104800.0,104790.0,0.5376923]
[1750249990291,0.80176005,104800.0,104790.0,0.50906499]
[1750249990912,0.80176005,104800.0,104790.0,0.51860752]
[1750249991118,0.62046234,104800.0,104790.0,0.52814996]
[1750249991315,0.62046234,104800.0,104790.0,0.52850996]
[1750249991930,0.80176078,104800.0,104790.0,0.51896752]
[1750249992165,0.79221926,104800.0,104790.0,0.51896752]
[1750249992377,0.60137957,104800.0,104790.0,0.51896752]
[1750249992899,0.60137957,104800.0,104790.0,0.52850996]
[1750249993320,0.60137957,104800.0,104790.0,0.5380523]
[1750249993520,0.59183759,104800.0,104790.0,0.5380523]
[1750249993725,0.56073713,104800.0,104790.0,0.56875184]
[1750249993936,0.57982018,104800.0,104790.0,0.55920959]
[1750249994156,0.61182018,104800.0,104790.0,0.35996959]
[1750249994363,0.79311862,104800.0,104790.0,0.50938526]
[1750249994563,0.87159639,104800.0,104790.0,0.50938535]
[1750249994794,0.86205468,104800.0,104790.0,0.30898465]
[1750249995010,0.85251288,104800.0,104790.0,0.29944176]
[1750249996213,0.85251288,104800.0,104790.0,0.004]
[1750249996427,0.88281288,104800.0,104790.0,0.20124]
[1750249996685,0.88281288,104800.0,104790.0,0.20148]
[1750249996922,0.88281288,104800.0,104790.0,0.19948]
[1750249997143,0.88281288,104800.0,104790.0,0.01453]
[1750249997363,0.23300079,104790.0,104780.0,0.04148]
[1750249997578,0.50382774,104790.0,104780.0,0.04148]
[1750249997789,0.53382774,104790.0,104780.0,0.04148]
[1750249998430,0.50382774,104790.0,104780.0,0.06056751]
[1750249998635,0.50382774,104790.0,104780.0,0.07011113]
[1750249998848,0.50382774,104790.0,104780.0,0.07411113]
[1750249999081,0.50382774,104790.0,104780.0,0.26498725]
[1750249999795,0.50382774,104790.0,104780.0,0.25544363]
[1750250000483,0.31296929,104790.0,104780.0,0.31487403]
[1750250000691,0.34159687,104790.0,104780.0,0.31487422]
[1750250000898,0.30899669,104790.0,104780.0,0.31487312]
[1750250001106,0.29945398,104790.0,104780.0,0.31487312]
[1750250001311,0.49031252,104790.0,104780.0,0.29578671]
[1750250001523,0.52351252,104790.0,104780.0,0.29578671]
[1750250001734,0.33265462,104790.0,104780.0,0.30533006]
[1750250001951,0.29945462,104790.0,104780.0,0.31487322]
[1750250002164,0.28991191,104790.0,104780.0,0.38125398]
[1750250002592,0.28991191,104790.0,104780.0,0.34697322]
[1750250003010,0.46199233,104790.0,104780.0,0.34697322]
[1750250003222,0.47153513,104790.0,104780.0,0.34697322]
[1750250003429,0.47153513,104790.0,104780.0,0.31487322]
[1750250003870,0.46199233,104790.0,104780.0,0.31487322]
[1750250004520,0.4619916,104790.0,104780.0,0.31487322]
[1750250004730,0.43336466,104790.0,104780.0,0.51159574]
[1750250004939,0.44290673,104790.0,104780.0,0.44221498]
[1750250005150,0.43336466,104790.0,104780.0,0.44221498]
[1750250006174,0.44290673,104790.0,104780.0,0.44221498]
[1750250006412,0.43336466,104790.0,104780.0,0.44221498]
[1750250010790,0.23816628,104800.0,104790.0,0.25008548]
[1750250011002,0.23816628,104800.0,104790.0,0.50416724]
[1750250011645,0.22862448,104800.0,104790.0,0.50416724]
[1750250012083,0.46198914,104800.0,104790.0,0.50416724]
[1750250012304,0.43336466,104800.0,104790.0,0.50416724]
[1750250012544,0.22622349,104800.0,104790.0,0.6133382]
[1750250012762,0.06831679,104810.0,104800.0,0.25006454]
[1750250012979,0.07785768,104810.0,104800.0,0.3463063]
[1750250013210,0.36375937,104820.0,104800.0,0.34630648]
[1750250013396,0.05148178,104810.0,104800.0,0.35584791]
[1750250014079,0.48484644,104810.0,104800.0,0.35584791]
[1750250014295,0.52267794,104810.0,104800.0,0.36538925]
[1750250014716,0.32012141,104810.0,104800.0,0.36538925]
[1750250014973,0.28772141,104810.0,104800.0,0.37676722]
[1750250015204,0.50440374,104810.0,104800.0,0.37676722]
[1750250015421,0.52348579,104810.0,104800.0,0.36722588]
[1750250015637,0.51394472,104810.0,104800.0,0.36722588]
[1750250016077,0.50440374,104810.0,104800.0,0.37676722]
[1750250017157,0.50440374,104810.0,104800.0,0.36538925]
[1750250017846,0.28772141,104810.0,104800.0,0.36538925]
[1750250018263,0.26863981,104810.0,104800.0,0.36538925]
[1750250018547,0.26863972,104810.0,104800.0,0.39578925]
[1750250018809,0.26863963,104810.0,104800.0,0.39578925]
[1750250019028,0.25909938,104810.0,104800.0,0.39578925]
[1750250019460,0.25909938,104810.0,104800.0,0.47023797]
[1750250019643,0.26863981,104810.0,104800.0,0.39778925]
[1750250020095,0.27818042,104810.0,104800.0,0.39778925]
[1750250020309,0.27818042,104810.0,104800.0,0.36738925]
[1750250020518,0.2972622,104810.0,104800.0,0.35784791]
[1750250020738,0.81171024,104810.0,104800.0,0.48824145]
[1750250020965,0.20038149,104800.0,104790.0,0.27397751]
[1750250021184,0.66624615,104800.0,104790.0,0.40918022]
[1750250021395,0.66624615,104800.0,104790.0,0.20994022]
[1750250021605,0.66624615,104800.0,104790.0,0.40934022]
[1750250022242,0.66624615,104800.0,104790.0,0.41134022]
[1750250022454,0.66624615,104800.0,104790.0,0.42088284]
[1750250022871,0.66624615,104800.0,104790.0,0.42288284]
[1750250023083,0.73455322,104800.0,104790.0,0.42288284]
[1750250023527,0.73455322,104800.0,104790.0,0.41334022]
[1750250024378,0.73455322,104800.0,104790.0,0.41322022]
[1750250025011,0.73455322,104800.0,104790.0,0.25546022]
[1750250025221,0.73455322,104800.0,104790.0,0.40367751]
[1750250025648,0.72501142,104800.0,104790.0,0.40367751]
[1750250026064,0.72501142,104800.0,104790.0,0.41322013]
[1750250026274,0.72501142,104800.0,104790.0,0.41322022]
[1750250026497,0.72501142,104800.0,104790.0,0.42276284]
[1750250026741,0.65670435,104800.0,104790.0,0.42276284]
[1750250027837,0.65670435,104800.0,104790.0,0.41322022]
[1750250028040,0.65670435,104800.0,104790.0,0.41310022]
[1750250028903,0.46586466,104800.0,104790.0,0.42264275]
[1750250029111,0.48494798,104800.0,104790.0,0.44172734]
[1750250029313,0.45244753,104800.0,104790.0,0.47172734]
[1750250029963,0.46198877,104800.0,104790.0,0.47172734]
[1750250030199,0.47153048,104800.0,104790.0,0.47172734]
[1750250030605,0.46198877,104800.0,104790.0,0.50482734]
[1750250030995,0.47153048,104800.0,104790.0,0.57439769]
[1750250031248,0.48107228,104800.0,104790.0,0.54129769]
[1750250031875,0.48107228,104800.0,104790.0,0.47172734]
[1750250032085,0.48107292,104800.0,104790.0,0.47172734]
[1750250032298,0.47153103,104800.0,104790.0,0.47172734]
[1750250032514,0.45244752,104800.0,104790.0,0.47172734]
[1750250032735,0.46198923,104800.0,104790.0,0.47172734]
[1750250032943,0.48107292,104800.0,104790.0,0.54112769]
[1750250034059,0.48107292,104800.0,104790.0,0.53158544]
[1750250034266,0.48107356,104800.0,104790.0,0.53158544]
[1750250034678,0.48107356,104800.0,104790.0,0.54112769]
[1750250034861,0.28866095,104800.0,104790.0,0.54112769]
[1750250035739,0.50265912,104800.0,104790.0,0.3940179]
[1750250035944,0.48357561,104800.0,104790.0,0.3940179]
[1750250036156,0.46449174,104800.0,104790.0,0.20316]
[1750250036365,0.46449174,104800.0,104790.0,0.04552]
[1750250036572,0.46449174,104800.0,104790.0,0.2032]
[1750250037652,0.49629174,104800.0,104790.0,0.2032]
[1750250038098,0.46449174,104800.0,104790.0,0.37162359]
[1750250038513,0.46449174,104800.0,104790.0,0.3811663]
[1750250039344,0.46449174,104800.0,104790.0,0.39070892]
[1750250039555,0.47403354,104800.0,104790.0,0.40025145]
[1750250040414,0.47403354,104800.0,104790.0,0.4330509]
[1750250040624,0.26003537,104800.0,104790.0,0.49959505]
[1750250040830,0.26957726,104800.0,104790.0,0.49959505]
[1750250041039,0.26957662,104800.0,104790.0,0.49959505]
[1750250041464,0.26003482,104800.0,104790.0,0.53219505]
[1750250041713,0.26957653,104800.0,104790.0,0.53219505]
[1750250042125,0.24530681,104800.0,104790.0,0.53219505]
[1750250042574,0.47153094,104800.0,104790.0,0.46565035]
[1750250042796,0.00954125,104800.0,104790.0,0.43305035]
[1750250043023,0.24530681,104800.0,104790.0,0.52929211]
[1750250043233,0.46198914,104800.0,104790.0,0.56259211]
[1750250043445,0.45244743,104800.0,104790.0,0.56259211]
[1750250043651,0.45244734,104800.0,104790.0,0.56259211]
[1750250044284,0.23576492,104800.0,104790.0,0.56259211]
[1750250044697,0.23039459,104800.0,104790.0,0.56259211]
[1750250045116,0.23039459,104800.0,104790.0,0.64209093]
[1750250045333,0.01371199,104800.0,104790.0,0.64209093]
[1750250045572,0.22622358,104800.0,104790.0,0.64209093]
[1750250045781,0.00954125,104800.0,104790.0,0.64209093]
[1750250045993,0.22622358,104800.0,104790.0,0.64209093]
[1750250046441,0.00954125,104800.0,104790.0,0.64209093]
[1750250046651,0.22622358,104800.0,104790.0,0.64209093]
[1750250046875,0.22622349,104800.0,104790.0,0.64209093]
[1750250047079,0.21668233,104800.0,104790.0,0.64209093]
[1750250047497,0.22622349,104800.0,104790.0,0.64209093]
[1750250047974,0.21668233,104800.0,104790.0,0.64209093]
[1750250048401,0.24530654,104800.0,104790.0,0.64209093]
[1750250048402,0.25484834,104800.0,104790.0,0.56259211]
[1750250048692,0.47153067,104800.0,104790.0,0.50066499]
[1750250048945,0.67191234,104800.0,104790.0,0.51974977]
[1750250049152,0.48107265,104800.0,104790.0,0.51974977]
[1750250049605,0.67191234,104800.0,104790.0,0.51974977]
[1750250050248,0.48107265,104800.0,104790.0,0.52929202]
[1750250050453,0.66237109,104800.0,104790.0,0.45544567]
[1750250050656,0.66237109,104800.0,104790.0,0.46498801]
[1750250050865,0.4715314,104800.0,104790.0,0.46498801]
[1750250051844,0.66237109,104800.0,104790.0,0.46498801]
[1750250052050,0.68342975,104800.0,104790.0,0.4034007]
[1750250052479,0.67388813,104800.0,104790.0,0.4034007]
[1750250052695,0.67388813,104800.0,104790.0,0.4033207]
[1750250052696,0.70822828,104800.0,104790.0,0.4033207]
[1750250052904,0.70822828,104800.0,104790.0,0.41286341]
[1750250053780,0.67388813,104800.0,104790.0,0.41286341]
[1750250053986,0.67388813,104800.0,104790.0,0.45560594]
[1750250054676,0.67388813,104800.0,104790.0,0.44606341]
[1750250054919,0.66434633,104800.0,104790.0,0.4033207]
[1750250055600,0.65480435,104800.0,104790.0,0.4033207]
[1750250057775,0.65480435,104800.0,104770.0,0.489511]
[1750250057776,0.00954316,104780.0,104770.0,0.489511]
[1750250057995,0.23576893,104780.0,104770.0,0.31576887]
[1750250058218,0.24531255,104780.0,104770.0,0.52435294]
[1750250058619,0.24531255,104780.0,104770.0,0.36667294]
[1750250058823,0.24531255,104780.0,104770.0,0.53031294]
[1750250059031,0.23576893,104780.0,104770.0,0.53040327]
[1750250059235,0.00954316,104780.0,104770.0,0.52440327]
[1750250059445,0.24531246,104780.0,104770.0,0.52440327]
[1750250059651,0.23576884,104780.0,104770.0,0.52840327]
[1750250059856,0.24531237,104780.0,104770.0,0.52840327]
[1750250060070,0.23576884,104780.0,104770.0,0.52840327]
[1750250060285,0.24531237,104780.0,104770.0,0.52840327]
[1750250060483,0.24531237,104780.0,104770.0,0.53140327]
[1750250060688,0.23576884,104780.0,104770.0,0.56380327]
[1750250060890,0.24531237,104780.0,104770.0,0.56380327]
[1750250061100,0.23576884,104780.0,104770.0,0.56080327]
[1750250061305,0.23576884,104780.0,104770.0,0.56180327]
[1750250061917,0.24531237,104780.0,104770.0,0.56180327]
[1750250062307,0.23576884,104780.0,104770.0,0.59300327]
[1750250062742,0.24531237,104780.0,104770.0,0.59300327]
[1750250062946,0.23576884,104780.0,104770.0,0.59300327]
[1750250063439,0.21668233,104780.0,104770.0,0.67139328]
[1750250063590,0.0190846,104790.0,104780.0,0.21950643]
[1750250063788,0.23576693,104790.0,104780.0,0.28410643]
[1750250064027,0.23576665,104790.0,104780.0,0.28410643]
[1750250064206,0.2262244,104790.0,104780.0,0.38034819]
[1750250064564,0.24530918,104790.0,104780.0,0.38034819]
[1750250064741,0.47153422,104790.0,104780.0,0.38034819]
[1750250065118,0.47153422,104790.0,104780.0,0.38134819]
[1750250065732,0.46199151,104790.0,104780.0,0.38134819]
[1750250065943,0.67193501,104790.0,104780.0,0.31674838]
[1750250066147,0.66239294,104790.0,104780.0,0.31674838]
[1750250066371,0.68505069,104790.0,104780.0,0.30720503]
[1750250066515,0.79719142,104790.0,104780.0,0.39099612]
[1750250067416,0.78764871,104790.0,104780.0,0.2096638]
[1750250067719,0.77810582,104790.0,104780.0,0.20012]
[1750250068801,0.77810582,104790.0,104780.0,0.2096638]
[1750250070404,0.77810582,104790.0,104780.0,0.001]
[1750250072182,0.68662256,104790.0,104780.0,0.001]
[1750250072788,0.65642256,104790.0,104780.0,0.20141974]
[1750250073216,0.68862256,104790.0,104780.0,0.001]
[1750250073445,0.20998339,104770.0,104760.0,0.20998758]
[1750250073656,0.65289222,104770.0,104760.0,0.50582296]
[1750250074271,0.43620989,104770.0,104760.0,0.50582296]
[1750250074472,0.43620989,104770.0,104760.0,0.50578305]
[1750250074673,0.43620989,104770.0,104760.0,0.51832831]
[1750250074877,0.43620989,104770.0,104760.0,0.53287348]
[1750250075086,0.43620989,104770.0,104760.0,0.33379348]
[1750250075290,0.43620989,104770.0,104760.0,0.53287348]
[1750250075491,0.23577039,104770.0,104760.0,0.54241847]
[1750250075700,0.24531474,104770.0,104760.0,0.60851847]
[1750250076652,0.23577039,104770.0,104760.0,0.40943847]
[1750250076860,0.22622622,104770.0,104760.0,0.60847847]
[1750250077066,0.23577029,104770.0,104760.0,0.60847847]
[1750250077269,0.22622622,104770.0,104760.0,0.60847847]
[1750250077479,0.21668233,104770.0,104760.0,0.60847847]
[1750250077687,0.22622486,104790.0,104780.0,0.20996345]
[1750250077893,0.45244944,104790.0,104780.0,0.44953005]
[1750250078101,0.46199215,104790.0,104780.0,0.44953005]
[1750250078344,0.44290691,104790.0,104780.0,0.44953005]
[1750250078554,0.45244925,104790.0,104780.0,0.54577181]
[1750250078762,0.23576692,104790.0,104780.0,0.54577181]
[1750250078967,0.23576692,104790.0,104780.0,0.54677181]
[1750250079181,0.01908459,104790.0,104780.0,0.54677181]
[1750250079399,0.45244925,104790.0,104780.0,0.54677181]
[1750250079601,0.46199169,104790.0,104780.0,0.54677181]
[1750250079828,0.01908469,104790.0,104780.0,0.54677181]
[1750250080045,0.45244935,104790.0,104780.0,0.54677181]
[1750250080257,0.45244925,104790.0,104780.0,0.54677181]
[1750250080475,0.44290691,104790.0,104780.0,0.54677181]
[1750250082401,0.29665947,104790.0,104780.0,0.54677181]
[1750250082597,0.28711703,104790.0,104780.0,0.62149283]
[1750250083272,0.27757478,104790.0,104780.0,0.54677181]
[1750250083490,0.21668233,104790.0,104780.0,0.54677181]
[1750250086331,0.01908259,104800.0,104790.0,0.28418548]
[1750250086537,0.23576492,104800.0,104790.0,0.42178724]
[1750250086761,0.24530654,104800.0,104790.0,0.42178724]
[1750250086903,0.23576492,104800.0,104790.0,0.42178724]
[1750250087329,0.22622349,104800.0,104790.0,0.42178724]
[1750250087622,0.22722349,104800.0,104790.0,0.42178724]
[1750250088030,0.22722358,104800.0,104790.0,0.42178724]
[1750250088233,0.22822358,104800.0,104790.0,0.42178724]
[1750250088626,0.21868233,104800.0,104790.0,0.42178724]
[1750250089394,0.21768233,104800.0,104790.0,0.5007302]
[1750250089618,0.21668233,104800.0,104790.0,0.5007302]
[1750250089950,0.21668233,104800.0,104790.0,0.5017302]
[1750250093898,0.21668233,104800.0,104790.0,0.4603702]
[1750250094129,0.45244725,104800.0,104790.0,0.51544724]
[1750250094352,0.49318877,104800.0,104790.0,0.51544724]
[1750250094555,0.27650644,104800.0,104790.0,0.51544724]
[1750250094783,0.28604815,104800.0,104790.0,0.51544724]
[1750250094989,0.05340213,104800.0,104790.0,0.51544724]
[1750250095411,0.06294328,104800.0,104790.0,0.51544724]
[1750250095638,0.06294301,104800.0,104790.0,0.51544724]
[1750250095852,0.06294301,104800.0,104790.0,0.5943782]
[1750250095853,0.02220167,104800.0,104790.0,0.5943782]
[1750250096057,0.02220158,104800.0,104790.0,0.5943782]